Cogmind - Beta 16.1 @@@ ROGUE MODE // 2026.02.24 @ 12:19:27 Player: shockman27 Result: Destroyed by YI-UF0 with YI-UF0's Doublenader Performance ------------- Evolutions (0) 0 Regions Visited (2) 400 Robots Destroyed (29) 145 Value Destroyed (574) 574 Prototype IDs (0) 0 Alien Tech Used (0) 0 Bonus (0) 0 TOTAL SCORE: 1119 Bonus ------- None Cogmind --------- Core Integrity 0/250 Matter 300/300 Energy 250/250 System Corruption 1% Temperature Cool (0) Movement Treading (160) Location -10/Mines Parts ------- > --- POWER (1) -------- Ion Engine > --- PROPULSION (2) --- Light Treads Light Treads > --- UTILITY (2) ------ Large Storage Unit Seismic Detector > --- WEAPON (2) ------- Beam Cannon Light Cannon > --- INVENTORY (15) --- Ion Engine Light Treads Large Matter Pod (150) Structural Scanner Seismic Detector Light Armor Plating Light Armor Plating Hacking Suite Assault Rifle Assault Rifle Assault Rifle Light Cannon Grenade Launcher Datajack Hammer Peak State ------------ > --- POWER ------------ Ion Engine > --- PROPULSION ------- Light Treads Light Treads > --- UTILITY ---------- Small Storage Unit Seismic Detector > --- WEAPON ----------- Assault Rifle Assault Rifle > --- INVENTORY -------- Ion Engine Seismic Detector Hacking Suite Beam Cannon Assault Rifle Assault Rifle Datajack Mining Laser [Rating: 8] Favorites ----------- Power Ion Engine Engine Ion Engine Propulsion Light Treads Treads Light Treads Utility Seismic Detector Device Seismic Detector Storage Small Storage Unit Protection Propulsion Shielding Weapon Beam Cannon Energy Gun Medium Laser Energy Cannon Beam Cannon Ballistic Gun Assault Rifle Ballistic Cannon Light Cannon Special Weapon Mining Laser Build | -11 -10 -10 ------- Run | Yrd Mat Min Slots Evolved . | . . . Power . | . . . Propulsion . | . . . Utility . | . . . Weapon . | . . . Parts Attached 23 | 8 13 2 Power 2 | 1 1 . Engine 2 | 1 1 . Core . | . . . Reactor . | . . . Propulsion 4 | 2 2 . Treads 4 | 2 2 . Leg . | . . . Wheel . | . . . Hover . | . . . Flight . | . . . Utility 7 | 2 4 1 Device 3 | 1 2 . Storage 2 | 1 1 . Processor . | . . . Hackware . | . . . Protection 2 | . 1 1 Artifact . | . . . Weapon 10 | 3 6 1 Energy Gun 1 | 1 . . Energy Cannon 1 | . 1 . Ballistic Gun 6 | 2 4 . Ballistic Cannon 1 | . . 1 Launcher . | . . . Special Weapon 1 | . 1 . Impact Weapon . | . . . Slashing Weapon . | . . . Piercing Weapon . | . . . Special Melee Weapon . | . . . Unidentified Prototypes . | . . . Parts Lost 3 | . 3 . Power . | . . . Propulsion 1 | . 1 . Utility 1 | . 1 . Weapon 1 | . 1 . Highest Loss Streak 2 | . 2 . To Critical Strikes . | . . . Average Backups 9 | 3 8 14 Power . | . 1 1 Propulsion . | 1 . . Utility 2 | . 2 5 Weapon 4 | . 4 6 Tool/Special . | . . . Unused Backups 17 | . 6 11 Power 2 | . 1 1 Propulsion 4 | . 2 2 Utility 6 | . 2 4 Weapon 4 | . 1 3 Tool/Special 1 | . . 1 Average Slot Usage (%) 97 | . 96 100 Engine 14 | . 14 14 Treads 25 | . 25 28 Device 12 | . 12 9 Storage 14 | . 14 14 Protection 1 | . 1 4 Energy Gun 1 | . 2 . Energy Cannon 10 | . 9 14 Ballistic Gun 9 | . 12 . Ballistic Cannon 1 | . . 6 Special Weapon 4 | . 3 7 Peak Build Rating 8 | 7 8 8 Average Rating 7 | 6 7 8 On Entrance 5 | . 7 8 Avg Prop Armor Cover (%) . | . . . Naked Turns . | . . . Heaviest Build 34 | 13 31 34 Greatest Support 40 | 40 40 40 Greatest Overweight (x) . | . . . Average Overweight (x) . | . . . Largest Inventory Capacity 15 | 8 15 15 Average Capacity 11 | 7 10 15 Most Carried 15 | 7 14 15 Average Carried 9 | 3 8 14 Final Capacity 15 | 8 15 15 Final Carried 15 | 6 14 15 Class Distribution -------------------- 97% | Mutant Dominant Class ---------------- Mutant | -10/Materials Mutant | -10/Mines Resources | -11 -10 -10 ----------- Run | Yrd Mat Min Matter Collected 983 | 324 583 76 Remotely . | . . . Salvage Created 998 | 164 553 281 Parts 65 | 15 35 15 Haulers Intercepted 2 | . 2 . Recyclers Shooed 1 | . . 1 Parts Field Recycled . | . . . Retrieved Matter . | . . . Parts Self-Destructed . | . . . Prevented . | . . . Parts Restored . | . . . Kills | -11 -10 -10 ------- Run | Yrd Mat Min Combat Hostiles Destroyed 17 | . 13 4 Guns 8 | . 8 . Cannons 9 | . 5 4 Classes Destroyed 7 | 2 4 1 Builder 1 | . 1 . Tunneler 6 | 5 . 1 Hauler 2 | . 2 . Recycler 3 | 1 1 1 Swarmer 6 | . 6 . Grunt 9 | . 7 2 Sentry 2 | . . 2 Best Kill Streak 3 | 3 3 2 Combat Bots Only 3 | . 3 2 Max Kills in Single Turn 2 | 1 2 1 Gunslinging . | . . . Exploded . | . . . Melee . | . . . Uniques/NPCs Destroyed . | . . . Combat | -11 -10 -10 -------- Run | Yrd Mat Min Hostile Shots Fired 101 | . 88 13 Missed 27 | . 24 3 Hits 74 | . 64 10 Projectile 74 | . 64 10 AOE 1 | . . 1 Damage Taken 874 | . 720 154 Core 260 | . 206 54 Absorbed by Shields . | . . . Redirected to Shielding 8 | . . 8 Core Remaining (%) 100 | 100 . . Volleys Fired 111 | 22 80 9 Largest 2 | 2 2 2 Hottest 100 | 40 100 90 Shots Fired 206 | 44 144 18 Gun 140 | 44 96 . Cannon 52 | . 34 18 Launcher . | . . . Special 14 | . 14 . Kinetic 127 | 44 74 9 Thermal 79 | . 70 9 Explosive . | . . . Electromagnetic . | . . . Robot Hit Streak 13 | 12 11 13 Robot Miss Streak 4 | 2 4 1 Penetration Max . | . . . Secondary Targets 1 | . 1 . Max Gunslinging Chain 1 | . 1 . Shots Hit Robots 131 | 30 86 15 Core Hits 46 | 11 27 8 Critical Kills 1 | . 1 . Critical Parts Destroyed 1 | . 1 . Critical Strikes 5 | . 4 1 Burn 2 | . 2 . Destroy 2 | . 2 . Blast 1 | . . 1 Melee Attacks . | . . . Impact . | . . . Slashing . | . . . Piercing . | . . . Sneak Attacks . | . . . Combat Hostiles . | . . . Follow-up Attacks . | . . . Damage Inflicted 1741 | 242 1230 269 Guns 1044 | 242 802 . Cannons 666 | . 397 269 Explosions . | . . . Melee . | . . . Ramming 7 | . 7 . Kinetic 997 | 242 628 127 Thermal 737 | . 595 142 Explosive . | . . . Electromagnetic . | . . . Impact . | . . . Slashing . | . . . Piercing . | . . . Highest Corruption 1 | . 1 1 Average Corruption 1 | . 1 1 Corruption Purged . | . . . Corruption Blocked . | . . . Effects 5 | . . 5 Message Errors 1 | . . 1 Heat Flow Errors 2 | . . 2 Misfires 1 | . . 1 Weapon Failures 1 | . . 1 Overload Shots . | . . . Overflow Damage . | . . . Projectiles . | . . . Explosions . | . . . Melee . | . . . Knockbacks 1 | . 1 . Impact 1 | . 1 . Kinetic . | . . . Secondary . | . . . Self-Inflicted Damage . | . . . Shots . | . . . Rammed 1 | . 1 . Targets Rammed 1 | . 1 . Kicked . | . . . Crushed . | . . . Highest Temperature 256 | . 215 256 Average Temperature 51 | . 45 77 Received Heat Transfer 279 | . 228 51 Effects 3 | . . 3 Energy Bleed 1 | . . 1 Interference 2 | . . 2 Siege Activations . | . . . Martial Activations . | . . . Shielding Activations . | . . . Robots Disrupted . | . . . Combat Hostiles . | . . . Robots Corrupted . | . . . Combat Hostiles . | . . . Parts Fried . | . . . Impact Corruptions . | . . . Robots Melted . | . . . Combat Hostiles . | . . . Parts Melted 2 | . 2 . Heat Transferred 1863 | . 1567 296 Parts Sabotaged . | . . . Parts Stolen . | . . . Parts Stripped . | . . . Power Chain Reactions . | . . . Alert | -11 -10 -10 ------- Run | Yrd Mat Min Maximum Alert Level . | . . . Low Security (%) 100 | 100 100 100 Level 1 . | . . . Level 2 . | . . . Level 3 . | . . . Level 4 . | . . . Level 5 . | . . . High Security . | . . . Max Security . | . . . Peak Influence 123 | 10 123 50 Initial 4 | . 3 4 Average 34 | . 46 7 Influence Increases 624 | 30 494 100 Destroy 0b10 Robot/C 340 | . 260 80 Destroy 0b10 Robot/NC 60 | 30 20 10 Destroy Leader 74 | . 64 10 Successful Hack 31 | . 31 . Disable Machine 15 | . 15 . Destroy Structure 14 | . 14 . Lose Combat Pursuer 90 | . 90 . Influence Decreases 624 | 25 488 111 Entered New Map 9 | . 2 7 Time Decay 585 | 25 456 104 Lost Part 30 | . 30 . Squads Dispatched 3 | . 3 . Investigation 1 | . 1 . Extermination . | . . . Reinforcement 2 | . 2 . Assault . | . . . Garrison . | . . . Intercept . | . . . Searches Triggered . | . . . Construction Impeded . | . . . Haulers Reinforced . | . . . Active Scanning Responses . | . . . Cargo Convoy Interrupts . | . . . Stealth | -11 -10 -10 --------- Run | Yrd Mat Min Distress Signals 2 | . 2 . Communications Jammed . | . . . Distress Signals . | . . . Times Spotted 35 | . 30 5 Peak Tracking Total 3 | . 3 2 Tactical Retreats 4 | . 4 . Traps | -11 -10 -10 ------- Run | Yrd Mat Min Traps Triggered 2 | . 2 . Indirectly . | . . . Trap Hack Attempts . | . . . Triggered . | . . . Disarmed . | . . . Reprogrammed . | . . . Reused . | . . . Traps Extracted . | . . . Installed . | . . . Triggered . | . . . Machines | -11 -10 -10 ---------- Run | Yrd Mat Min Machines Disabled 1 | . 1 . Max in Single Turn 1 | . 1 . Machines Repaired . | . . . Machines Dismantled . | . . . Machines Sabotaged . | . . . Overloaded Fab Kills . | . . . Hacking | -11 -10 -10 --------- Run | Yrd Mat Min Machines Accessed 6 | . 6 . Terminals 5 | . 5 . Fabricators . | . . . Repair Stations 1 | . 1 . Recycling Units . | . . . Scanalyzers . | . . . Garrison Access . | . . . Total Hacks 16 | . 16 . Successful 7 | . 7 . Failed 9 | . 9 . Catastrophic 2 | . 2 . Database Lockouts . | . . . Manual 11 | . 11 . Terminals 13 | . 13 . Fabricators . | . . . Repair Stations 3 | . 3 . Recycling Units . | . . . Scanalyzers . | . . . Garrison Access . | . . . Terminal Hacks 3 | . 3 . Robot Analysis 2 | . 2 . Locate Traps 1 | . 1 . Fabricator Hacks . | . . . Repair Station Hacks 1 | . 1 . Scan Component 1 | . 1 . Recycling Unit Hacks . | . . . Scanalyzer . | . . . Garrison Access Hacks . | . . . Unauthorized Hacks 3 | . 3 . Terminals 3 | . 3 . Botnet 3 | . 3 . Fabricators . | . . . Repair Stations . | . . . Recycling Units . | . . . Scanalyzers . | . . . Garrison Access . | . . . Data Cores Recovered . | . . . Used . | . . . Hacking Detections 6 | . 6 . Full Trace Events 1 | . 1 . Feedback Events 1 | . 1 . Corruption 1 | . 1 . Feedback Blocked . | . . . Robot Schematics Acquired . | . . . Robots Built . | . . . Authchips . | . . . Time . | . . . Total Robot Build Rating . | . . . Part Schematics Acquired . | . . . Parts Built . | . . . Authchips . | . . . Time . | . . . Total Part Build Rating . | . . . Part Studies Acquired . | . . . Parts Repaired . | . . . Time . | . . . Parts Recycled . | . . . Recycled Matter . | . . . Retrieved Matter . | . . . Retrieved Components . | . . . Parts Scanalyzed . | . . . Part Schematics Acquired . | . . . Parts Damaged . | . . . Bothacking | -11 -10 -10 ------------ Run | Yrd Mat Min Used RIF Installer . | . . . Robots Hacked . | . . . Non-combat . | . . . Combat . | . . . Robot Hacks Applied . | . . . Relay Couplers Released . | . . . Fabnet Peak Effective % . | . . . Robots Rewired . | . . . Allies Hacked . | . . . Hacks Repelled . | . . . Allies | -11 -10 -10 -------- Run | Yrd Mat Min Total Allies . | . . . Largest Group . | . . . Highest-Rated Group . | . . . Highest-Rated Ally . | . . . Total Orders . | . . . Ally Attacks . | . . . Total Damage . | . . . Kills . | . . . Allies Corrupted . | . . . Allies Melted . | . . . Intel | -11 -10 -10 ------- Run | Yrd Mat Min Active Infowar (turns) 2516 | 134 1954 428 Seismic 2516 | 134 1954 428 Robot Analysis Total 2 | . 2 . Derelict Logs Recovered 2 | . . 2 Drone Launches . | . . . Drone Recoveries . | . . . Exploration | -11 -10 -10 ------------- Run | Yrd Mat Min Turns Passed 3043 | 258 2160 625 Spaces Moved 1588 | 116 1109 363 Core 7 | 7 . . Treads 1581 | 109 1109 363 Legs . | . . . Wheels . | . . . Hover . | . . . Flight . | . . . Fastest Speed 50 | 50 160 160 Average Speed 159 | 153 160 160 Slowest Speed 160 | 160 160 160 Overloaded Moves . | . . . Propulsion Burnouts . | . . . Robots Hopped . | . . . Potential Cave-ins . | . . . Cave-ins Triggered . | . . . Exploration Rate (%) 56 | 5 97 67 Regions Visited 2 Branch Regions 1 Pre-discovered Areas . | . . . Known Exits Taken . | . . . Unknown Exits Taken 2 | 1 1 . Scrap Searched 1 | . . 1 Spaces Dug 12 | . 12 . Terrain Destroyed 12 | . 12 . Melee . | . . . Projectile 12 | . 12 . AOE . | . . . Terrain Rammed . | . . . Walls Destroyed . | . . . Machines Disabled . | . . . Actions | -11 -10 -10 --------- Run | Yrd Mat Min Total 1867 | 158 1320 389 Wait 89 | 4 81 4 Move 1586 | 115 1108 363 Hop . | . . . Pick Up 29 | 8 16 5 Fast Attach 7 | 6 1 . Attach 3 | 1 2 . Detach . | . . . Swap 26 | 1 21 4 Drop 15 | 1 10 4 Fire 111 | 22 80 9 Melee . | . . . Ram . | . . . Kick . | . . . Crush 1 | . 1 . Escape Stasis . | . . . Rewire . | . . . Trap . | . . . Miscellaneous . | . . . Route ------- -11/Scrapyard -10/Materials (discovered 4 exits: [*Mat x3] / [*Min]) -10/Mines (discovered 2 exits: [*Mat] / [*Sub]) History --------- Turn | Location | Event 5 | -11/Scrapyard | Discovered new exit (range 16) 259 | -11/Scrapyard | Entered Materials 303 | -10/Materials | Build established: Mutant 746 | -10/Materials | Discovered new exit (range 14) 847 | -10/Materials | Discovered new exit (range 16) 859 | -10/Materials | Derelicts attacked the area 1035 | -10/Materials | Core integrity fell below 50% 1050 | -10/Materials | Discovered new exit (range 13) 1439 | -10/Materials | Core integrity fell below 20% 1933 | -10/Materials | Discovered new exit (range 16) 2419 | -10/Materials | Entered Mines 2420 | -10/Mines | YI-UF0 nonchalantly dropped a Grenade Launcher on the ground 2480 | -10/Mines | Discovered new exit (range 13) 2568 | -10/Mines | Found a hidden stash of uninstalled traps 2719 | -10/Mines | Learned 4 Materials zone layouts 2723 | -10/Mines | Learned Materials stockpile data 2791 | -10/Mines | Discovered new exit (range 7) 3044 | -10/Mines | Destroyed by YI-UF0 with YI-UF0's Doublenader Last Messages --------------- 02861_ G-47 Trooper destroyed. 02863_ K-01 Serf collects debris. 02864_ G-34 Mercenary destroyed. 02866_ K-01 Serf collects debris. 02869_ Acquired 12 matter. 02870_ K-01 Serf collects debris. 02989_ R-06 Scavenger destroyed. 02995_ Acquired 14 matter. 03001_ K-01 Serf collects debris. 03020_ System corrupted: Heat flow error (+112). 03035_ Searching scrap... 03035_ Found Hammer. 03035_ Found EM Pulse Gun. 03035_ Found Hcp. Matter Pod. 03035_ Found Com. Wheel. 03035_ Found 37 Matter. 03038_ Dropped Mining Laser. 03039_ Acquired Hammer. 03039_ U-05 Engineer destroyed. 03039_ Matter Pump disabled. Map ----- +----------------------------------------------------+ | ?????# ####### #????????????????????????? | | ?????# ## ##????????????????????????? | | ????## ####?? ??????????????????????? | | ???## ## ##????? ??????????????????????? | | ?### #######?????? ??????????????????????? | | ## ##???????????? ??????????????????????? | | # ##????????????# ??????????????????????? | | ##?????????????# ??????????????????????? | | ##??????????????# ??????????????????????? | | ###???????????????# #?????????????????????? | | ########?????????????????# #?????????????????????? | | ??????????????????????#### ##????????????????????? | | ??????########????????? ##???????????????????? | | ?????## #????????? #???????????????????? | | ?????# #?????????? #???????????????????? | | ?????# #??????????? #???????????????????? | | ?????# #???????###### #????????????????????? | | ?????# #????????# #????????????????????? | | ###??## ##????????# #### #????????????????????? | | # #### ##????????# #?## #????????????????????? | | ## ########## #?# #????????????????????? | | !=!!%=%*= #?# #????????????????????? | | ############?# ##????????????????????? | | #????????????# #???????????? ????????? | | ## ###### #???????????? ???????? | | ## ## ! @ #???????????? ???????? | | ?# ## ! ##### #???????????? ???????? | | ## ##????????????# !#???????????? ???????? | | #?????????????#|%#???????????? ???????? | | #?????????????# [ ??????????? ???????? | | #?????????????# g! ?????????# #???????? | | #?????????????# % ????????# #???????? | | ## ### ##?????????????# #??????# #???????? | | ?#####?###?????????????? """ #??????# ???????? | | ???????????????????????? """ #?????# ##??????? | | ???????????????????????## #????## ##?????? | | ????????????????????????## #?#### #?????? | | ??####????????????????????# ### #?????? | | ?## ##????????????????????# ### #?????? | | ## ##???????????????????# ##?## #?????? | | ##??????????????????? #???## ##?????? | | #???????????????????# ##???# ####??????? | | ##?????????????????## #???# #?????????? | | # ### #####???????????### #???# #?????????? | | ####?# #??##??????## ##### #?????????? | | ?????## #?## ##????# #?????????? | | ??????## ## #?# ##???# #?????????? | | ########### #?# < ###?# ########?????????? | | #?# #?# #### # ##??###???????????? | | """ #?# #?# ###### #???# ???????????? | +----------------------------------------------------+ Best States ------------- Heat Dissipation 25 Energy Generation 10 Energy Capacity 250 Matter Stores 300 Matter Capacity 300 Sight Range 16 Terrain Scan Density 10 Armor Coverage 150 Propulsion Shielding 33 Evasion (%) 40 Recoil Reduction 2 Item Schematics ----------------- None Robot Schematics ------------------ None Fabricated ------------ Nothing Repaired ---------- Nothing Studied --------- None Alien Tech Used ----------------- None Achievements -------------- None Challenges ------------ None Game ------ Seed DecoderHeatTreads Manual? 0 Play Time 00:20:39 Cumulative 180.4 hours Start 2026.02.22 @ 23:25:23 End 2026.02.24 @ 12:19:27 Sessions 6 Manual Loads 0 Difficulty Rogue Special Mode None Game No. 107 Rogue 103 Adventurer 4 Explorer 0 Win Type - Total 3 Types 2/0/0/1/0/0/0/0/0/0 Lore% 69 Gallery% 58 Achievement% 37 Wizard Run 0 Options --------- Layout 0 ASCII 0 Keyboard 1 Movement Vi Keybinds 0 Fullscreen 1 Font 24/Smallcaps Map View 76x50 Zoom Use 0% Tactical HUD 1 Map Filters NONE Filters NONE Steam 1 RUN: 7a5ad971-7526-4ad4-a447-63ae9821e62b